Cogmind - Beta 10.2 @@@ ROGUE MODE // 2020.12.13 @ 12:07:33 Player: Luigi Panache Result: Destroyed by D-53 Grenadier with Mini Grenade Launcher Performance ------------- Evolutions (0) 0 Regions Visited (4) 800 Robots Destroyed (18) 90 Value Destroyed (298) 298 Prototype IDs (0) 0 Alien Tech Used (0) 0 Bonus (0) 0 TOTAL SCORE: 1188 Bonus ------- None Cogmind --------- Core Integrity 0/250 Matter 300/300 Energy 100/100 System Corruption 0% Temperature Cool (0) Movement Core (550) Ox10 Location -9/Mines Parts ------- > --- POWER (1) -------- (None) > --- PROPULSION (2) --- (None) > --- UTILITY (2) ------ High-capacity Storage Unit Improved Terrain Scanner > --- WEAPON (2) ------- (None) > --- INVENTORY (12) --- Ion Engine Light Treads Light Treads Improved Heat Sink Large Storage Unit Large Storage Unit High-capacity Matter Pod (200) Peak State ------------ > --- POWER ------------ Ion Engine > --- PROPULSION ------- Light Treads Light Treads > --- UTILITY ---------- Small Storage Unit Improved Terrain Scanner > --- WEAPON ----------- EM Pulse Gun EM Pulse Gun > --- INVENTORY -------- Ion Engine Wheel Light Assault Rifle [Rating: 8] Favorites ----------- Power Ion Engine Engine Ion Engine Propulsion Light Treads Treads Light Treads Wheel Wheel Utility Large Storage Unit Device Improved Terrain Scanner Storage Large Storage Unit Weapon Small Laser Energy Gun Small Laser Ballistic Gun Light Assault Rifle Build | -11 -10 -10 -10 -9 ------- Run | Scr Mat Min Exi Min Slots Evolved . | . . . . . Power . | . . . . . Propulsion . | . . . . . Utility . | . . . . . Weapon . | . . . . . Parts Attached 20 | 8 6 1 . 5 Power 1 | 1 . . . . Engine 1 | 1 . . . . Core . | . . . . . Reactor . | . . . . . Propulsion 5 | 2 2 . . 1 Treads 4 | 2 2 . . . Leg . | . . . . . Wheel 1 | . . . . 1 Hover . | . . . . . Flight . | . . . . . Utility 6 | 2 2 1 . 1 Device 2 | 1 . . . 1 Storage 4 | 1 2 1 . . Processor . | . . . . . Hackware . | . . . . . Protection . | . . . . . Artifact . | . . . . . Weapon 8 | 3 2 . . 3 Energy Gun 5 | 2 1 . . 2 Energy Cannon . | . . . . . Ballistic Gun 3 | 1 1 . . 1 Ballistic Cannon . | . . . . . Launcher . | . . . . . Special Weapon . | . . . . . Impact Weapon . | . . . . . Slashing Weapon . | . . . . . Piercing Weapon . | . . . . . Special Melee Weapon . | . . . . . Unidentified Prototypes . | . . . . . Parts Lost 10 | . 1 1 . 8 Power 1 | . . . . 1 Propulsion 3 | . . . . 3 Utility . | . . . . . Weapon 6 | . 1 1 . 4 Highest Loss Streak 5 | . 1 1 . 5 Average Slot Usage (%) 85 | . 97 85 85 69 Engine 12 | . 14 14 14 5 Treads 26 | . 28 28 28 18 Device 3 | . 12 . . 5 Storage 24 | . 15 28 28 22 Energy Gun 13 | . 16 14 14 8 Ballistic Gun 2 | . 9 . . 2 Naked Turns . | . . . . . Heaviest Build 56 | 14 40 54 54 56 Greatest Support 40 | 40 40 40 40 40 Greatest Overweight (x) 10 | . . 1 1 10 Average Overweight (x) . | . . . 1 2 Largest Inventory Capacity 18 | 6 16 18 18 18 Average Capacity 13 | 5 7 16 18 15 Most Carried 9 | 3 7 8 9 9 Average Carried 6 | 2 4 7 8 6 Final Capacity 18 | 6 16 18 18 12 Final Carried 9 | 3 7 8 9 7 Class Distribution -------------------- 100% | Mutant Dominant Class ---------------- Mutant | -10/Materials Mutant | -10/Mines Mutant | -10/Exiles Mutant | -9/Mines Resources | -11 -10 -10 -10 -9 ----------- Run | Scr Mat Min Exi Min Matter Collected 450 | 310 70 1 20 49 Remotely . | . . . . . Salvage Created 574 | 163 271 39 . 101 Parts 46 | 6 28 5 . 7 Haulers Intercepted 1 | . 1 . . . Recyclers Shooed 1 | 1 . . . . Parts Field Recycled . | . . . . . Retrieved Matter . | . . . . . Parts Self-Destructed . | . . . . . Prevented . | . . . . . Kills | -11 -10 -10 -10 -9 ------- Run | Scr Mat Min Exi Min Combat Hostiles Destroyed 11 | . 6 3 . 2 Melee 1 | . . . . 1 Guns 10 | . 6 3 . 1 Classes Destroyed 7 | 3 4 . . . Worker 1 | 1 . . . . Tunneler 2 | 2 . . . . Hauler 1 | . 1 . . . Recycler 1 | 1 . . . . Watcher 2 | . 2 . . . Swarmer 6 | . 3 3 . . Grunt 5 | . 3 . . 2 Best Kill Streak 4 | 3 4 2 . 1 Combat Bots Only 3 | . 3 2 . 1 Max Kills in Single Turn 1 | 1 1 1 . 1 Gunslinging . | . . . . . Exploded . | . . . . . Melee 1 | . . . . 1 Uniques/NPCs Destroyed . | . . . . . Combat | -11 -10 -10 -10 -9 -------- Run | Scr Mat Min Exi Min Damage Taken 1313 | . 450 167 . 696 Core 256 | . 64 21 . 171 Absorbed by Shields . | . . . . . Core Remaining (%) 100 | 100 . . . . Volleys Fired 97 | 40 30 18 . 9 Largest 2 | 2 2 2 . 2 Hottest 80 | 80 80 80 . 60 Shots Fired 166 | 80 53 19 . 14 Gun 166 | 80 53 19 . 14 Cannon . | . . . . . Launcher . | . . . . . Special . | . . . . . Kinetic 60 | 30 21 . . 9 Thermal 20 | . 2 18 . . Explosive . | . . . . . Electromagnetic 86 | 50 30 1 . 5 Robot Hit Streak 8 | 6 7 2 . 8 Robot Miss Streak 4 | 2 2 4 . 2 Penetration Max . | . . . . . Secondary Targets 4 | . 4 . . . Max Gunslinging Chain 1 | . 1 . . . Shots Hit Robots 66 | 13 35 7 . 11 Core Hits 30 | 5 14 3 . 8 Critical Hits . | . . . . . Critical Kills . | . . . . . Critical Parts Destroyed . | . . . . . Melee Attacks . | . . . . . Impact . | . . . . . Slashing . | . . . . . Piercing . | . . . . . Sneak Attacks . | . . . . . Combat Hostiles . | . . . . . Follow-up Attacks . | . . . . . Damage Inflicted 903 | 222 438 86 . 157 Guns 777 | 139 438 86 . 114 Cannons . | . . . . . Explosions 83 | 83 . . . . Melee . | . . . . . Ramming 43 | . . . . 43 Kinetic 157 | . 100 . . 57 Thermal 181 | 83 12 86 . . Explosive . | . . . . . Electromagnetic 522 | 139 326 . . 57 Impact . | . . . . . Slashing . | . . . . . Piercing . | . . . . . Highest Corruption . | . . . . . Average Corruption . | . . . . . Corruption Purged . | . . . . . Overload Shots . | . . . . . Overflow Damage 5 | 5 . . . . Projectiles . | . . . . . Explosions 5 | 5 . . . . Melee . | . . . . . Knockbacks . | . . . . . Impact . | . . . . . Kinetic . | . . . . . Secondary . | . . . . . Self-Inflicted Damage . | . . . . . Shots . | . . . . . Rammed 16 | . . . . 16 Targets Rammed 16 | . . . . 16 Kicked . | . . . . . Crushed . | . . . . . Highest Temperature 146 | 136 146 20 . 110 Average Temperature 57 | 60 55 16 . 67 Received Heat Transfer 384 | . 156 . . 228 Siege Activations . | . . . . . Robots Corrupted . | . . . . . Combat Hostiles . | . . . . . Parts Fried 4 | 1 3 . . . Impact Corruptions . | . . . . . Robots Melted . | . . . . . Combat Hostiles . | . . . . . Parts Melted . | . . . . . Heat Transferred 325 | 100 25 200 . . Parts Sabotaged . | . . . . . Parts Stolen . | . . . . . Parts Stripped . | . . . . . Power Chain Reactions 2 | 2 . . . . Missiles Intercepted . | . . . . . Alert | -11 -10 -10 -10 -9 ------- Run | Scr Mat Min Exi Min Peak Influence 224 | 20 224 162 . 30 Initial 87 | . 13 87 . . Average 79 | 11 123 154 . 18 Maximum Alert Level 1 | . 1 . . . Low Security (%) 89 | 100 68 100 . 100 Level 1 10 | . 31 . . . Level 2 . | . . . . . Level 3 . | . . . . . Level 4 . | . . . . . Level 5 . | . . . . . High Security . | . . . . . Max Security . | . . . . . Squads Dispatched 1 | . 1 . . . Investigation . | . . . . . Extermination . | . . . . . Reinforcement 1 | . 1 . . . Assault . | . . . . . Garrison . | . . . . . Intercept . | . . . . . Construction Impeded . | . . . . . Haulers Reinforced . | . . . . . Stealth | -11 -10 -10 -10 -9 --------- Run | Scr Mat Min Exi Min Distress Signals . | . . . . . Communications Jammed . | . . . . . Distress Signals . | . . . . . Times Spotted 20 | . 13 3 . 4 Peak Tracking Total 4 | . 4 3 . 2 Tactical Retreats 2 | . 2 . . . Traps | -11 -10 -10 -10 -9 ------- Run | Scr Mat Min Exi Min Traps Triggered . | . . . . . Indirectly . | . . . . . Trap Hack Attempts . | . . . . . Triggered . | . . . . . Disarmed . | . . . . . Reprogrammed . | . . . . . Reused . | . . . . . Traps Extracted . | . . . . . Installed . | . . . . . Triggered . | . . . . . Machines | -11 -10 -10 -10 -9 ---------- Run | Scr Mat Min Exi Min Machines Disabled . | . . . . . Max in Single Turn . | . . . . . Machines Sabotaged . | . . . . . Garrisons Compromised . | . . . . . Overloaded Fab Kills . | . . . . . Fab Network Shutdowns . | . . . . . Hacking | -11 -10 -10 -10 -9 --------- Run | Scr Mat Min Exi Min Machines Accessed 1 | . 1 . . . Terminals 1 | . 1 . . . Fabricators . | . . . . . Repair Stations . | . . . . . Recycling Units . | . . . . . Scanalyzers . | . . . . . Garrison Access . | . . . . . Total Hacks 4 | . 4 . . . Successful 4 | . 4 . . . Failed . | . . . . . Catastrophic . | . . . . . Database Lockouts . | . . . . . Manual . | . . . . . Terminals 4 | . 4 . . . Fabricators . | . . . . . Repair Stations . | . . . . . Recycling Units . | . . . . . Scanalyzers . | . . . . . Garrison Access . | . . . . . Terminal Hacks 4 | . 4 . . . Alert Level 4 | . 4 . . . Fabricator Hacks . | . . . . . Repair Station Hacks . | . . . . . Recycling Unit Hacks . | . . . . . Scanalyzer . | . . . . . Garrison Access Hacks . | . . . . . Unauthorized Hacks . | . . . . . Terminals . | . . . . . Fabricators . | . . . . . Repair Stations . | . . . . . Recycling Units . | . . . . . Scanalyzers . | . . . . . Garrison Access . | . . . . . Data Cores Recovered . | . . . . . Used . | . . . . . Hacking Detections 1 | . 1 . . . Full Trace Events . | . . . . . Feedback Events . | . . . . . Feedback Blocked . | . . . . . Robot Schematics Acquired . | . . . . . Robots Built . | . . . . . Matter . | . . . . . Time . | . . . . . Total Robot Build Rating . | . . . . . Part Schematics Acquired . | . . . . . Parts Built . | . . . . . Matter . | . . . . . Time . | . . . . . Total Part Build Rating . | . . . . . Parts Repaired . | . . . . . Time . | . . . . . Parts Recycled . | . . . . . Recycled Matter . | . . . . . Retrieved Matter . | . . . . . Retrieved Components . | . . . . . Parts Scanalyzed . | . . . . . Part Schematics Acquired . | . . . . . Parts Damaged . | . . . . . Bothacking | -11 -10 -10 -10 -9 ------------ Run | Scr Mat Min Exi Min Used RIF Installer . | . . . . . Robots Hacked . | . . . . . Non-combat . | . . . . . Combat . | . . . . . Robot Hacks Applied . | . . . . . Relay Couplers Released . | . . . . . Robots Rewired . | . . . . . Allies Hacked . | . . . . . Hacks Repelled . | . . . . . Allies | -11 -10 -10 -10 -9 -------- Run | Scr Mat Min Exi Min Total Allies . | . . . . . Largest Group . | . . . . . Highest-Rated Group . | . . . . . Highest-Rated Ally . | . . . . . Total Orders . | . . . . . Ally Attacks . | . . . . . Total Damage . | . . . . . Kills . | . . . . . Allies Corrupted . | . . . . . Allies Melted . | . . . . . Intel | -11 -10 -10 -10 -9 ------- Run | Scr Mat Min Exi Min Robot Analysis Total . | . . . . . Derelict Logs Recovered 1 | . . 1 . . Drone Launches . | . . . . . Drone Recoveries . | . . . . . Exploration | -11 -10 -10 -10 -9 ------------- Run | Scr Mat Min Exi Min Turns Passed 1478 | 246 291 191 579 171 Spaces Moved 705 | 77 127 93 322 86 Core 6 | 5 . . . 1 Treads 634 | 72 127 93 322 20 Legs . | . . . . . Wheels 65 | . . . . 65 Hover . | . . . . . Flight . | . . . . . Fastest Speed 50 | 50 160 160 180 110 Average Speed 165 | 152 160 165 180 132 Slowest Speed 550 | 160 160 180 180 550 Overloaded Moves . | . . . . . Propulsion Burnouts . | . . . . . Robots Hopped . | . . . . . Cave-ins Triggered . | . . . . . Exploration Rate (%) 32 | 6 31 23 76 24 Regions Visited 4 Branch Regions 3 Pre-discovered Areas . | . . . . . Known Exits Taken . | . . . . . Unknown Exits Taken 4 | 1 1 1 1 . Scrap Searched 1 | . . 1 . . Spaces Dug . | . . . . . Terrain Destroyed 6 | 6 . . . . Melee . | . . . . . Projectile . | . . . . . AOE 6 | 6 . . . . Terrain Rammed . | . . . . . Walls Destroyed . | . . . . . Machines Disabled . | . . . . . Actions | -11 -10 -10 -10 -9 --------- Run | Scr Mat Min Exi Min Total 842 | 127 165 111 322 117 Wait . | . . . . . Move 701 | 76 126 92 321 86 Hop . | . . . . . Pick Up 6 | 3 1 . 1 1 Fast Attach 10 | 7 2 . . 1 Attach 3 | . . . . 3 Detach . | . . . . . Swap 7 | 1 4 1 . 1 Drop 2 | . 2 . . . Fire 97 | 40 30 18 . 9 Melee . | . . . . . Ram . | . . . . . Kick . | . . . . . Crush 16 | . . . . 16 Escape Stasis . | . . . . . Rewire . | . . . . . Trap . | . . . . . Miscellaneous . | . . . . . Route ------- -11/Scrapyard -10/Materials -10/Mines (discovered 2 exits: Mat / [*Exi]) -10/Exiles -9/Mines History --------- Turn | Location | Event 10 | -11/Scrapyard | Discovered new exit (range 15) 247 | -11/Scrapyard | Entered Materials 305 | -10/Materials | Build established: Mutant 526 | -10/Materials | Discovered new exit (range 7) 538 | -10/Materials | Entered Mines 611 | -10/Mines | Identified exit to Materials 720 | -10/Mines | Deemed a non-threat by the Exiles lab entrance 720 | -10/Mines | Discovered new exit (range 5) 729 | -10/Mines | Entered Exiles 729 | -10/Exiles | Found Exiles lab abandoned 1290 | -10/Exiles | Discovered new exit (range 10) 1308 | -10/Exiles | Entered Mines 1369 | -9/Mines | Core integrity fell below 50% 1409 | -9/Mines | Lost 5 parts (1p1n3w) 1416 | -9/Mines | Met a Derelict bent on vengeance 1434 | -9/Mines | Assembled infested the area 1466 | -9/Mines | Core integrity fell below 20% 1479 | -9/Mines | Destroyed by D-53 Grenadier with Mini Grenade Launcher Last Messages --------------- 01348_ EM Pulse Gun destroyed. 01352_ Lgt. Treads destroyed. 01353_ G-47 Trooper destroyed. 01357_ Acquired 18 matter. 01360_ Acquired 1 matter. 01360_ Lgt. Assault Rifle destroyed. 01361_ Slammed into G-34 Mercenary. 01378_ Ion Engine destroyed. 01379_ Slammed into G-34 Mercenary. 01391_ G-34 Mercenary destroyed. 01395_ Acquired Sml. Laser. 01396_ Acquired 10 matter. 01405_ Acquired 20 matter. 01434_ ALERT: Infestation in the mines, dispatching Demolisher response squad. 01456_ R-06 Scavenger collects Aluminum Leg. 01461_ Acquired Imp. Heat Sink. 01464_ Sml. Laser destroyed. 01477_ Lgt. Treads destroyed. 01477_ Wheel destroyed. Map ----- +----------------------------------------------------+ | ?????????????????????????????????????????????????? | | ?????????????????????????????????????????????????? | | ?????????????????????????????????????????????????? | | ?????????????????????????????????????????????????? | | ?????????????????????????????????????????????????? | | ?????????????????????????????????????????????????? | | ?????????????????????????????????????????????????? | | ?????????????????????????????????????????????????? | | ???????####??????????????????????????????????????? | | ?????### ##???? ????????????????????????????????? | | ?????# #?????????????????????????????????????? | | ?????# ##????????????????????????????????????? | | ?????# #????????????????????????????????????? | | ??????# #????#???????????????????????????????? | | #?????## #????????????????????????????????????? | | #?????## #????????????????????????????????????? | | ?????## #????????????????????????????????????? | | ??????# #????????????????????????????????????? | | ??????# #?#?????????????????????? ???????????? | | ?????# #????###??####???????????????????????? | | ####?# #?##?# ### #???????????????????????? | | ### ### ## ###?????????????????????? | | ## # ##?????#???????????????? | | # ## # #?????????????????????? | | # ##????????????????????? | | # dd @ #???????????#????????? | | # #???????????????????? | | # %% # ### #?????????????????? | | ## %% = # ###?### ##?????????????????? | | ### ####?#????####???????#??????????? | | ??## %% ###############???????????#?????????? | | ??## #### #?????????????????????? | | ?## ## #####?????????????????? | | ?# ####### #?????????????????? | | ?# ## ##?????# #?????????????????? | | ?## ##### ##??????###### #?????????????????? | | ??## ????# ##??#?????????# #?????????????????? | | #??# ???# ##?#???#???????# ????????????????? | | ???# ??# ##?????????????? ??????????????? | | ???# ??# ###??????#???????? ????????????? | | ???# ??## #???????????????? ###### ??????????? | | ??## ???# #?????????????? ? #??????? #????????? | | ????$#??# #??????????????? #????????? #????????? | | ????????# #???????? ??? ??#??????#?????#????????? | | ????????# #?????????????????????????????????????? | | ???????? ????????????? ????????????????? ??????? | | ????????###??????????????????????????????????????? | | ???????????????????#?????????????????????????????? | | ?????????????????????????????????????????????????? | | ?????????????????????????????????????????????????? | +----------------------------------------------------+ Best States ------------- Heat Dissipation 25 Energy Generation 10 Energy Capacity 250 Matter Stores 300 Matter Capacity 300 Sight Range 16 Terrain Scan Range 16 Terrain Scan Density 10 Evasion (%) 40 Recoil Reduction 2 Item Schematics ----------------- None Robot Schematics ------------------ None Fabricated ------------ Nothing Alien Tech Used ----------------- None Achievements -------------- None Challenges ------------ None Game ------ Seed GrenadeForceCoupler Manual? 0 Play Time 00:13:48 Cumulative 137.1 hours Start 2020.12.13 @ 11:19:48 End 2020.12.13 @ 12:07:33 Sessions 1 Manual Loads 0 Difficulty Rogue Special Mode None Game No. 113 Rogue 32 Adventurer 43 Explorer 38 Win Type - Total 7 Types 7/0/0/0/0/0/0/0/0 Lore% 55 Gallery% 71 Achievement% 57 Wizard Run 0 Options --------- ASCII 0 Keyboard 0 Movement Mouse Keybinds 0 Fullscreen 2 Font 18/TerminusBold Map View 76x50 Tactical HUD 1 Map Filters NONE Filters NONE Steam 1 RUN: 2f9bb05a-e9aa-4432-8ff8-0a29231691c3